bitfinex/quotes_ETHUSD_20220311
["timestamp","ask_amount","ask_price","bid_price","bid_amount"]
[1646963793666,0.00301757,2564.8,2564.5,2.94984]
[1646963794668,0.974943,2565.4,2564.5,2.94984]
[1646963794669,0.06054367,2565.3,2564.5,1.94984]
[1646963794906,0.00301757,2564.8,2564.5,2.94984]
[1646963795709,1.60755343,2565.3,2564.5,2.94984]
[1646963795909,0.06396498,2565.2,2564.5,2.94984]
[1646963796112,0.00374692,2564.8,2564.5,1.94984]
[1646963796314,0.00374692,2564.8,2564.5,2.94984]
[1646963796512,0.00374692,2564.8,2564.5,1.94984]
[1646963796712,0.00374692,2564.8,2564.5,2.94984]
[1646963796912,0.00374692,2564.8,2564.5,1.94984]
[1646963797114,1.60755343,2565.1,2564.5,1.94984]
[1646963797317,0.00374692,2564.8,2564.5,1.94984]
[1646963798216,1.60753585,2565.1,2564.5,1.94984]
[1646963798418,0.05505323,2565.0,2564.5,1.94984]
[1646963798670,0.00374692,2564.8,2564.5,1.94984]
[1646963799459,1.67045254,2565.1,2564.5,1.94984]
[1646963799660,0.00374692,2564.8,2564.5,0.23510831]
[1646963800660,1.60753301,2565.3,2564.5,0.23510831]
[1646963800859,0.00301757,2564.8,2564.5,0.23510831]
[1646963801862,0.06730351,2565.2,2564.5,0.23510831]
[1646963802061,0.00301757,2564.8,2564.5,0.23510831]
[1646963802905,1.67824245,2565.5,2564.7,1.0]
[1646963803207,0.07083925,2565.5,2565.1,1.1227771]
[1646963804009,0.06019892,2565.9,2565.1,1.1227771]
[1646963804210,1.60720925,2565.8,2565.1,1.1227771]
[1646963804408,0.05748103,2565.7,2565.1,1.1227771]
[1646963804609,0.00374491,2565.4,2565.1,1.1227771]
[1646963804811,3.1,2565.1,2564.3,0.1948]
[1646963805009,3.1,2565.1,2563.8,3.046]
[1646963805010,0.07697175,2564.9,2563.7,0.13819997]
[1646963805212,1.60778396,2564.8,2563.4,0.39106]
[1646963805412,0.06998865,2564.6,2563.4,0.00096]
[1646963805612,2.26478396,2564.5,2563.4,0.00096]
[1646963805812,5.19238633,2564.4,2563.1,0.00096]
[1646963806168,0.07590772,2563.9,2562.8,0.81279115]
[1646963806362,0.07590772,2563.9,2562.9,0.00096]
[1646963806559,0.07590772,2563.9,2562.8,0.81279115]
[1646963806758,0.0724275,2564.1,2562.8,0.81279115]
[1646963806959,0.3724275,2564.1,2562.9,0.00096]
[1646963807160,0.0752293,2563.7,2562.8,0.81279115]
[1646963807358,0.0752293,2563.7,2562.9,0.97557]
[1646963808261,0.078416,2563.4,2562.9,0.97557]
[1646963808661,0.08259761,2563.7,2562.9,0.97557]
[1646963809463,0.00374854,2563.4,2562.9,0.97557]
[1646963809927,0.08237874,2563.4,2562.9,0.97557]
[1646963810327,0.0786302,2563.4,2562.9,0.97557]
[1646963810529,0.00374858,2563.3,2562.9,0.97557]
[1646963811334,0.07222909,2563.3,2562.9,0.97557]
[1646963811638,0.06848051,2563.3,2562.9,0.97557]
[1646963812034,0.00374859,2563.2,2562.9,0.97557]
[1646963812637,0.06848051,2563.3,2562.9,0.97557]
[1646963813036,0.00374853,2563.2,2562.9,0.97557]
[1646963813235,0.00374853,2563.2,2562.8,1.78842115]
[1646963813866,0.975481,2563.7,2562.8,1.78842115]
[1646963814062,0.06529427,2564.0,2562.9,1.0]
[1646963814266,0.06529427,2564.0,2563.2,0.97544]
[1646963815469,0.06529427,2564.0,2563.3,0.85001392]
[1646963815670,0.06529427,2564.0,2563.4,0.97538]
[1646963815868,0.06529427,2564.0,2563.3,0.85001392]
[1646963816270,0.06529427,2564.0,2563.1,0.00096]
[1646963816271,0.9754279,2563.9,2563.1,0.00096]
[1646963816471,0.9754279,2563.9,2563.0,1.0]
[1646963816472,0.08361063,2563.7,2563.0,1.0]
[1646963816670,3.5,2563.8,2563.0,1.0]
[1646963816671,0.06500087,2563.5,2563.0,1.0]
[1646963816876,0.06507846,2563.4,2562.5,0.00096]
[1646963817070,0.06507846,2563.4,2562.6,1.0]
[1646963817705,4.5,2563.5,2562.5,1.10410301]
[1646963817706,0.97888999,2563.2,2562.5,1.10410301]
[1646963817906,0.36684026,2563.1,2562.5,1.10410301]
[1646963818405,0.36684026,2563.1,2562.2,1.95247]
[1646963818604,0.06684026,2563.1,2562.2,1.95151]
[1646963819007,1.0,2563.7,2562.3,1.0]
[1646963819008,0.00302725,2563.2,2562.3,1.0]
[1646963819206,0.00302725,2563.2,2562.3,1.00096]
[1646963819410,0.00302725,2563.2,2562.7,0.97566]
[1646963820009,4.5,2563.9,2562.7,2.11420835]
[1646963820212,0.00302743,2563.2,2562.7,2.11516835]
[1646963820410,0.00302743,2563.2,2562.7,2.11420835]
[1646963821008,0.25926764,2563.8,2562.7,2.11420835]
[1646963821009,0.06533727,2563.8,2562.7,2.11420835]
[1646963821268,0.06533727,2563.8,2562.8,0.97553]
[1646963821467,0.06533727,2563.8,2562.9,0.97559]
[1646963821468,0.00375194,2563.2,2562.9,0.97559]
[1646963822273,0.06533727,2563.8,2563.1,1.02596555]
[1646963822666,0.00352656,2563.2,2563.1,1.02596555]
[1646963823068,0.00352656,2563.2,2563.1,2.00165555]
[1646963823267,0.00352656,2563.2,2563.1,0.97569]
[1646963823469,0.06463636,2563.3,2563.1,0.97569]
[1646963823869,0.06463636,2563.3,2562.8,1.95117]
[1646963824070,0.06816296,2563.3,2562.8,1.95117]
[1646963824772,0.06463636,2563.3,2562.8,1.95117]
[1646963825009,0.00352656,2563.2,2562.8,1.95117]
[1646963825608,0.00352656,2563.2,2562.8,2.85284711]
[1646963826008,0.07850493,2563.5,2562.8,2.85284711]
[1646963826212,0.00367049,2563.2,2562.8,2.85284711]
[1646963827215,0.07850493,2563.5,2562.8,2.85284711]
[1646963827420,0.00367049,2563.2,2562.8,2.85284711]
[1646963827616,0.07342014,2563.2,2562.8,2.85284711]
[1646963828421,0.06797048,2563.4,2562.8,1.95117]
[1646963828656,0.08567603,2563.2,2562.6,1.95148]
[1646963828857,0.08430525,2563.2,2562.6,1.95148]
[1646963829560,0.08200554,2563.2,2562.6,1.95148]
[1646963829859,0.07906299,2563.4,2562.6,1.95148]
[1646963830459,0.9757936,2563.4,2562.9,1.00858839]
[1646963830664,3.2515589,2563.6,2562.9,1.98434839]
[1646963830665,1.3,2563.6,2562.9,1.98434839]
[1646963830859,0.06867423,2563.4,2562.9,1.98434839]
[1646963831264,3.695,2563.8,2562.9,1.98434839]
[1646963831265,4.695,2563.8,2562.9,1.98434839]
[1646963831463,0.08309756,2563.4,2562.9,1.98434839]
[1646963831665,0.08309756,2563.4,2563.0,0.97569]
[1646963832717,0.38309756,2563.4,2563.0,0.97569]
[1646963832916,0.08309756,2563.4,2563.0,0.97569]
[1646963833316,0.3,2563.5,2563.0,0.97569]
[1646963833616,0.07458746,2563.3,2563.0,0.97569]
[1646963833815,0.00375209,2563.3,2563.0,0.97569]
[1646963834415,0.08387029,2563.6,2563.3,1.09253357]
[1646963835616,0.08387029,2563.6,2563.4,0.97556]
[1646963835915,0.08387029,2563.6,2563.0,1.95118]
[1646963835916,0.08762231,2563.6,2563.0,1.95118]
[1646963836768,0.08387029,2563.6,2563.0,1.95118]
[1646963837168,0.00375206,2563.4,2563.1,0.90953745]
[1646963837871,0.07957498,2563.5,2563.1,0.90953745]
[1646963838068,0.07957498,2563.5,2563.0,1.95118]
[1646963838268,0.00370673,2563.4,2563.0,1.95118]
[1646963838469,0.0817731,2563.4,2562.7,0.00096]
[1646963838670,0.0817731,2563.4,2562.5,0.00096]
[1646963838868,1.60838599,2563.3,2562.6,0.97585]
[1646963839069,0.07154557,2563.2,2562.6,0.97585]
[1646963839267,0.07154557,2563.2,2562.7,0.85965157]
[1646963840116,0.00302632,2563.3,2562.8,0.97577]
[1646963840316,3.57479562,2563.8,2562.8,0.97577]
[1646963840317,0.08449311,2563.6,2562.8,0.97577]
[1646963840520,0.07666084,2563.5,2562.8,0.97577]
[1646963840717,0.00302632,2563.3,2562.8,0.97577]
[1646963841521,4.5,2563.8,2562.8,0.97577]
[1646963841522,0.06956784,2563.5,2562.8,0.97577]
[1646963841721,0.07364485,2563.7,2562.8,0.97577]
[1646963841922,0.00343029,2563.3,2562.8,0.97577]
[1646963842722,0.07782341,2563.4,2562.8,0.97577]
[1646963843126,0.00343029,2563.3,2562.8,0.97577]
[1646963843764,0.00343029,2563.3,2562.7,0.85965157]
[1646963843765,0.06729997,2563.2,2562.7,0.85965157]
[1646963843967,3.2515216,2563.6,2562.7,0.85965157]
[1646963843968,0.0763958,2563.4,2562.7,0.85965157]
[1646963844166,0.0763958,2563.4,2562.8,0.97578]
[1646963844167,0.00343029,2563.3,2562.8,0.97578]
[1646963844969,0.08368794,2563.2,2562.8,0.97578]
[1646963846372,0.07583679,2563.4,2562.8,0.97578]
[1646963846578,0.00270343,2563.3,2562.8,0.97578]
[1646963847612,0.06971571,2563.4,2562.8,0.97578]
[1646963847810,0.00270348,2563.3,2562.8,0.97578]
[1646963848211,0.00270348,2563.3,2562.8,1.97578]
[1646963848912,1.61077805,2563.3,2562.8,1.97578]
[1646963849113,0.0764824,2563.2,2562.8,1.97578]
[1646963849714,0.0764824,2563.2,2562.8,1.0]
[1646963850115,1.60815738,2563.1,2562.8,1.0]
[1646963850318,0.07494326,2562.9,2562.8,1.0]
[1646963850918,1.68319347,2562.9,2562.8,1.0]
[1646963851161,1.98319347,2562.9,2562.8,1.0]
[1646963851366,1.90825021,2562.9,2562.8,1.0]
[1646963854912,0.462,2563.2,2562.8,1.0]
[1646963855113,1.60837256,2563.1,2562.8,1.0]
[1646963855313,1.60837256,2563.0,2562.8,1.0]
[1646963855517,0.00342127,2563.3,2562.8,1.0]
[1646963856120,1.60833055,2563.3,2562.8,1.0]
[1646963856320,1.61175203,2563.3,2562.8,1.0]
[1646963856521,1.61175203,2563.3,2562.5,1.9515]
[1646963856720,1.61175203,2563.3,2562.3,3.23495138]
[1646963857320,0.9759192,2563.1,2562.3,3.23399138]
[1646963857519,1.90833055,2563.0,2562.3,3.23399138]
[1646963857720,1.90833055,2562.9,2562.3,3.23399138]
[1646963857921,1.60833055,2562.8,2562.3,3.23399138]
[1646963858420,1.60833055,2562.8,2562.3,3.03899138]
[1646963859460,0.3,2563.0,2562.3,3.03899138]
[1646963859660,1.60836385,2562.9,2562.3,3.03899138]
[1646963860859,0.3,2563.0,2562.3,4.01486138]
[1646963861059,1.60832447,2562.9,2562.5,0.97586]
[1646963861266,0.3,2563.0,2562.5,0.97586]
[1646963861464,0.07076762,2563.2,2562.5,0.97586]
[1646963861665,1.60827427,2563.1,2562.5,0.97586]
[1646963861865,0.06439795,2563.0,2562.5,0.97586]
[1646963863023,0.06439795,2563.0,2562.5,1.95169]
[1646963864217,0.06439795,2563.0,2562.6,0.9758]
[1646963864418,0.06439795,2563.0,2562.6,4.4758]
[1646963864619,0.07068563,2563.5,2562.6,4.4758]
[1646963864819,1.61184385,2563.4,2562.7,0.97574]
[1646963865020,0.08152519,2563.2,2562.7,0.97574]
[1646963865220,0.00367407,2563.4,2563.1,0.89745446]
[1646963865621,0.08083454,2563.4,2563.1,0.89745446]
[1646963865821,1.60812372,2563.3,2563.1,0.89745446]
[1646963866021,0.08149952,2563.2,2563.1,0.89745446]
[1646963866268,0.08149952,2563.2,2562.8,0.97571]
[1646963866472,0.08149952,2563.2,2562.9,0.97572]
[1646963866670,0.00367466,2563.4,2562.9,0.97572]
[1646963866869,0.08333932,2563.2,2562.9,0.97572]
[1646963867070,0.0817013,2563.5,2562.9,0.97572]
[1646963867271,0.07653937,2563.2,2563.0,0.941391]
[1646963867671,0.00367443,2563.4,2563.0,0.941391]
[1646963867973,0.07370328,2563.3,2563.0,0.941391]
[1646963868774,0.07370328,2563.3,2562.7,0.97578]
[1646963868976,1.60809869,2563.2,2562.6,1.95141]
[1646963869172,1.60809869,2563.2,2562.5,3.92736]
[1646963869475,1.60809869,2563.2,2562.5,3.87736]
[1646963869476,0.07000655,2563.1,2562.5,3.87736]
[1646963870016,0.07000655,2563.1,2562.8,1.03197753]
[1646963871221,0.00357594,2563.4,2562.8,1.03197753]
[1646963871522,0.0704717,2563.4,2562.8,1.03197753]
[1646963871720,1.60809099,2563.3,2562.8,1.03197753]
[1646963871920,0.07407728,2563.2,2562.8,2.00766753]
[1646963872120,0.07407728,2563.2,2562.9,0.97572]
[1646963872318,0.00359274,2563.4,2563.0,1.95115]
[1646963872520,0.00359274,2563.4,2563.0,3.9023]
[1646963872720,0.08069209,2563.3,2563.0,3.9023]
[1646963873122,0.00361734,2563.4,2563.0,3.9023]
[1646963873320,0.06852772,2563.4,2563.2,0.97563]
[1646963873521,0.00361734,2563.4,2563.2,0.97563]
[1646963873962,0.08189672,2563.4,2563.2,0.97563]
[1646963874264,1.60788123,2563.5,2563.2,0.97563]
[1646963874265,0.07290639,2563.6,2563.2,0.97563]
[1646963874562,0.07072975,2563.4,2563.2,0.97563]
[1646963874962,0.00361739,2563.4,2563.2,0.97563]
[1646963875362,0.07975756,2563.4,2563.2,0.97563]
[1646963875562,0.0833712,2563.4,2563.3,3.5]
[1646963875763,0.06574023,2564.2,2563.4,3.3]
[1646963875962,1.60764246,2564.1,2563.6,0.97529]
[1646963876163,0.07173273,2564.0,2563.6,0.97529]
[1646963876365,0.07173273,2564.0,2563.7,1.95047]
[1646963876564,8.02703591,2564.8,2563.8,0.97524]
[1646963876565,0.0844394,2564.6,2563.8,0.97524]
[1646963876770,1.60739061,2564.5,2563.9,3.5]
[1646963876967,1.60739061,2564.5,2563.8,3.5]
[1646963876968,0.08060034,2564.4,2563.8,3.5]
[1646963877168,1.60739061,2564.3,2563.8,3.5]
[1646963877429,1.60739061,2564.3,2563.0,22.57806014]
[1646963877430,6.6,2564.1,2563.0,22.57806014]
[1646963877619,0.0120805,2563.5,2562.7,0.156075]
[1646963877819,2.06939061,2563.4,2562.3,4.0313]
[1646963878017,0.07476564,2563.2,2562.2,1.0]
[1646963878218,0.07476564,2563.2,2562.1,1.2402]
[1646963878219,1.60739061,2563.1,2562.1,1.2402]
[1646963878422,0.08088595,2563.0,2562.0,0.00096]
[1646963878619,0.08088595,2563.0,2562.2,1.07555493]
[1646963879219,0.08088595,2563.0,2562.0,0.00386672]
[1646963879220,1.60828483,2562.9,2562.0,0.00386672]
[1646963879425,0.08731922,2562.8,2562.0,0.00290672]
[1646963879622,2.03954712,2562.8,2562.0,0.00290672]
[1646963879821,0.07789481,2562.6,2562.0,0.00290672]
[1646963880124,0.07789481,2562.6,2561.8,0.00096]
[1646963880322,0.07789481,2562.6,2562.0,0.80535792]
[1646963882071,0.07789481,2562.6,2561.9,0.00241356]
[1646963882469,0.9761055,2562.5,2561.9,0.00241356]
[1646963882670,0.07264125,2562.4,2561.7,1.0804119]
[1646963882868,0.07264125,2562.4,2561.9,0.00241356]
[1646963883070,0.07264125,2562.4,2561.9,0.89733224]
[1646963883469,0.07264125,2562.4,2561.9,0.00241356]
[1646963883669,0.07264125,2562.4,2561.7,1.08910685]
[1646963883869,0.07264125,2562.4,2561.7,1.0794519]
[1646963884073,0.07264125,2562.4,2561.9,0.00240753]
[1646963884272,1.05726841,2562.3,2561.9,0.00240753]
[1646963884473,0.07519526,2562.1,2561.9,0.00240753]
[1646963885118,0.07519526,2562.1,2561.4,0.00096]
[1646963885119,0.37519526,2562.1,2561.4,0.00096]
[1646963885320,0.37519526,2562.1,2561.2,0.00096]
[1646963885321,3.962,2562.0,2561.2,0.00096]
[1646963885521,3.58441595,2561.9,2561.0,0.00096]
[1646963885719,3.58441595,2561.9,2560.8,0.00096]
[1646963885720,1.9531704,2561.7,2560.8,0.00096]
[1646963885920,1.9531704,2561.7,2560.6,2.924]
[1646963885921,0.08857915,2561.5,2560.6,2.924]
[1646963886122,4.05057915,2561.5,2560.5,1.97753]
[1646963886324,0.9765623,2561.3,2560.5,1.00096]
[1646963886525,0.08546856,2561.2,2560.3,0.00096]
[1646963886823,0.08546856,2561.2,2560.2,1.0]
[1646963887423,0.08546856,2561.2,2560.4,1.10725099]
[1646963887625,0.08546856,2561.2,2560.4,2.38383099]
[1646963887825,0.08546856,2561.2,2560.6,0.00240881]
[1646963888665,0.08546856,2561.2,2560.6,0.97654]
[1646963889062,0.08546856,2561.2,2560.8,0.00240863]
[1646963889867,0.07432638,2561.4,2560.5,1.95289]
[1646963890066,0.07432638,2561.4,2560.5,3.25289]
[1646963890266,0.1952,2562.1,2560.9,0.00240853]
[1646963890467,0.07192174,2562.0,2560.9,0.00240853]
[1646963890665,0.07192174,2562.0,2561.0,0.97622]
[1646963890866,0.07192174,2562.0,2561.1,1.9524]
[1646963891065,0.07192174,2562.0,2561.2,0.969988]
[1646963891470,0.07192174,2562.0,2561.4,0.00240806]
[1646963892070,1.04821484,2562.0,2561.4,0.00240806]
[1646963892271,0.08282948,2561.9,2560.9,2.92996]
[1646963892521,0.38282948,2561.9,2560.9,2.929]
[1646963892718,0.08811962,2561.7,2561.6,0.00213699]
[1646963892920,0.07638551,2561.9,2561.6,0.00213699]
[1646963893117,0.0702421,2561.7,2561.6,0.00213699]
[1646963893517,0.3702421,2561.7,2561.6,0.00213699]
[1646963893721,0.087495,2561.6,2560.8,0.00096]
[1646963893920,0.087495,2561.6,2560.7,0.97649]
[1646963893921,0.087495,2561.6,2561.5,0.00213703]
[1646963894520,0.9764666,2561.6,2561.5,0.00213703]
[1646963894717,0.9764666,2561.6,2560.8,0.9774]
[1646963894917,0.9764666,2561.6,2561.4,0.00213711]
[1646963895521,0.9764139,2561.7,2561.4,0.00213711]
[1646963895819,0.3,2561.7,2561.4,0.00213711]
[1646963896019,1.462,2561.9,2560.9,1.95258]
[1646963896278,2.3425,2562.0,2561.4,0.00192717]
[1646963896279,3.3425,2562.0,2561.4,0.00192717]
[1646963896478,3.6425,2562.0,2561.4,0.00192717]
[1646963896778,1.3,2562.0,2561.4,0.00192717]
[1646963897179,0.3,2562.0,2561.1,0.00096]
[1646963897380,3.5,2562.0,2561.6,0.00192705]
[1646963897579,0.462,2562.1,2561.6,0.00192705]
[1646963897782,0.9763468,2561.9,2561.6,0.00192705]
[1646963898380,6.4528618,2562.0,2560.8,2.93007]
[1646963898682,6.7528618,2562.0,2561.6,0.00192702]
[1646963898880,3.2528618,2562.0,2561.6,0.00192702]
[1646963899082,6.7528618,2562.0,2561.6,0.00192702]
[1646963899480,6.7528618,2562.0,2561.1,0.02987134]
[1646963899481,6.7528618,2562.0,2561.1,0.00096]
[1646963899681,6.7528618,2562.0,2561.0,0.97637]
[1646963899926,3.2528618,2562.0,2561.7,0.00197421]
[1646963900113,0.9763696,2561.9,2561.7,0.00197421]
[1646963900715,0.9763696,2561.9,2561.1,0.00096]
[1646963900916,6.7528618,2562.0,2561.0,0.97637]
[1646963901222,0.9763843,2561.9,2561.7,0.00197421]
[1646963901620,0.97500473,2561.9,2561.7,0.00197421]
[1646963902022,0.97500473,2561.9,2561.1,0.00096]
[1646963902221,4.47500473,2561.9,2561.7,0.00197421]
[1646963902420,0.97500473,2561.9,2561.7,0.00197421]
[1646963902621,1.0,2561.9,2561.7,0.00197421]
[1646963902826,0.495,2562.0,2561.7,0.00197421]
[1646963903022,0.462,2562.1,2561.7,0.00197421]
[1646963903223,4.237,2562.5,2561.4,0.97386054]
[1646963903422,4.0373,2562.7,2561.7,0.00196358]
[1646963903871,2.8947,2562.7,2561.7,0.00196358]
[1646963904069,2.8947,2562.7,2561.7,0.00110569]
[1646963904268,2.59682349,2562.6,2561.5,0.00096]
[1646963904472,2.59682349,2562.6,2561.0,0.00096]
[1646963904473,4.157,2562.5,2561.0,0.00096]
[1646963904674,0.07773796,2562.4,2561.0,0.00096]
[1646963904873,0.657,2562.3,2561.0,0.00096]
[1646963905073,4.47643,2562.2,2561.0,0.00096]
[1646963905272,0.0882089,2561.7,2561.0,1.01902555]
[1646963905475,0.0882089,2561.7,2561.0,1.01806555]
[1646963907173,0.08955132,2561.9,2561.0,1.01806555]
[1646963907614,0.08955132,2561.9,2561.1,0.97635]
[1646963908314,0.08955132,2561.9,2561.4,0.00240592]
[1646963908715,0.0732914,2561.7,2561.4,0.00240592]
[1646963909115,0.3732914,2561.7,2561.0,1.05511971]
[1646963909315,0.0732914,2561.7,2561.0,1.01806555]
[1646963909515,3.5,2561.9,2561.4,0.00240587]
[1646963909516,0.08382344,2561.9,2561.4,0.00240587]
[1646963909817,0.27837034,2562.4,2561.4,0.00240587]
[1646963910018,0.088182,2562.3,2561.4,0.00240587]
[1646963910417,0.088182,2562.3,2561.1,0.00096]
[1646963910816,0.088182,2562.3,2561.8,0.00240554]
[1646963910817,2.1477757,2562.2,2561.8,0.00240554]
[1646963911016,0.08595386,2562.0,2561.8,0.00240554]
[1646963911269,0.0824158,2561.9,2561.8,0.00240554]
[1646963911670,0.0824158,2561.9,2560.7,0.00096]
[1646963911871,5.4853825,2561.9,2561.8,0.00214094]
[1646963912071,1.9529667,2561.9,2561.8,0.00214094]
[1646963912277,3.2529667,2561.9,2561.8,0.00214094]
[1646963912474,2.2529667,2561.9,2561.8,0.00214094]
[1646963912671,3.2529667,2561.9,2561.8,0.00214094]
[1646963912871,3.2529667,2561.9,2560.9,0.9774]
[1646963913070,0.3,2561.8,2561.7,0.00214098]
[1646963914074,0.3,2561.8,2560.9,0.9774]
[1646963914275,1.0,2561.9,2561.6,0.00214106]
[1646963914476,1.0,2562.0,2561.6,0.00214106]
[1646963914677,3.5,2561.9,2561.6,0.00214106]
[1646963914925,0.89265764,2562.3,2561.6,0.00214106]
[1646963915117,1.0,2561.9,2561.0,0.00096]
[1646963915316,3.5,2562.2,2560.8,3.25826036]
[1646963915517,0.9763515,2562.0,2561.6,0.00192394]
[1646963916322,0.9763515,2562.0,2561.1,0.00096]
[1646963916522,0.9763515,2562.0,2561.1,1.95252]
[1646963916724,0.9763515,2562.0,2561.7,0.00192391]
[1646963917523,0.9763515,2562.0,2561.2,0.00096]
[1646963917724,0.9763515,2562.0,2561.2,0.97636]
[1646963917925,4.695,2562.2,2561.7,0.00192387]
[1646963918126,2.1712987,2562.2,2561.7,0.00192387]
[1646963918325,1.1712987,2562.2,2561.7,0.00192387]
[1646963918769,0.195,2562.2,2561.5,0.97624]
[1646963918965,6.6321284,2562.5,2561.8,0.00192379]
[1646963919166,0.77301064,2562.5,2561.8,0.00192379]
[1646963919366,4.2101,2562.8,2561.8,0.00192379]
[1646963919567,0.19393037,2562.9,2561.8,0.00192379]
[1646963919568,0.38893037,2562.9,2561.8,0.00192379]
[1646963919967,0.19393037,2562.9,2561.9,0.97612]
[1646963920167,1.1709727,2563.0,2561.9,0.3]
[1646963920366,1.1709727,2563.0,2562.0,0.00197254]
[1646963920568,0.9759727,2563.0,2562.0,0.97798254]
[1646963920768,5.2931,2563.1,2562.0,0.97798254]
[1646963920969,2.5614,2563.1,2562.2,0.97599]
[1646963921172,2.3664,2563.1,2562.2,0.97599]
[1646963921374,3.1732,2563.4,2562.2,0.97599]
[1646963921678,1.6331,2563.8,2562.7,1.93377387]
[1646963921679,0.00361716,2563.3,2562.7,1.93377387]
[1646963921874,0.00361716,2563.3,2562.7,3.29942387]
[1646963922174,0.00361716,2563.3,2562.8,0.9754823]
[1646963922428,1.60775444,2563.9,2562.9,0.3]
[1646963922616,0.06716585,2563.8,2563.5,1.03454781]
[1646963922816,0.07225081,2564.1,2563.5,0.97547]
[1646963923016,1.60773286,2564.0,2563.3,0.97542]
[1646963923215,1.60773286,2563.9,2563.3,0.97542]
[1646963923415,3.695,2564.4,2563.1,0.9753773]
[1646963923416,1.6902117,2563.8,2563.1,0.9753773]
[1646963923620,0.07245572,2564.3,2563.1,0.9753773]
[1646963923919,3.48493591,2564.5,2563.1,0.9753773]
[1646963923920,0.00361443,2563.7,2563.5,0.99069545]
[1646963924117,0.00361443,2563.7,2563.6,0.97542]
[1646963925017,0.07254864,2564.2,2563.3,1.95083]
[1646963925217,0.00361442,2563.8,2563.4,1.95077]
[1646963925417,0.00361442,2563.8,2563.2,0.97562]
[1646963925617,0.07934117,2563.8,2563.2,0.97562]
[1646963925816,0.07934117,2563.8,2563.2,2.03967714]
[1646963926018,0.9755899,2564.2,2563.2,2.03967714]
[1646963926019,0.07067394,2564.0,2563.2,2.03967714]
[1646963926273,0.00361446,2563.6,2563.2,2.03967714]
[1646963927276,0.07067394,2564.0,2563.2,2.03967714]
[1646963927477,0.00327538,2563.5,2563.3,1.95114]
[1646963928478,0.07578729,2564.1,2563.5,1.95096]
[1646963929178,1.80174261,2564.0,2563.0,1.0]
[1646963929378,1.80174261,2564.0,2562.4,2.82165483]
[1646963929379,0.07397309,2563.8,2562.4,2.82165483]
[1646963929579,0.07397309,2563.8,2562.4,2.8138]
[1646963929778,0.26435746,2563.7,2562.7,0.97577]
[1646963930024,0.0743959,2563.6,2562.4,2.82165483]
[1646963930224,1.0502048,2563.6,2562.7,0.97578]
[1646963930427,0.06938936,2563.5,2562.7,0.97578]
[1646963930826,0.06938936,2563.5,2562.8,1.01942758]
[1646963931027,0.00327526,2563.3,2562.8,1.99518758]
[1646963931431,0.00327526,2563.3,2562.9,0.97571]
[1646963932032,0.27176036,2563.7,2562.9,0.97571]
[1646963932231,0.00329807,2563.3,2563.0,0.97569]
[1646963932832,0.00227857,2563.3,2563.0,0.97569]
[1646963933034,0.00227857,2563.3,2563.1,0.97563]
[1646963933233,0.19393037,2563.7,2563.1,0.97563]
[1646963933432,0.07140397,2563.9,2563.2,0.97564]
[1646963936066,0.00361506,2563.7,2562.9,1.95118]
[1646963936269,3.57342365,2563.7,2562.9,1.95118]
[1646963936470,1.6895914,2563.6,2562.6,1.95145]
[1646963936697,3.56656345,2563.5,2562.5,1.95148]
[1646963936873,0.06756518,2563.4,2562.5,1.95148]
[1646963937070,1.04344178,2563.4,2562.4,1.95164]
[1646963937270,0.06745274,2563.2,2562.4,0.00786324]
[1646963937519,0.462,2563.1,2562.4,0.00786324]
[1646963937720,0.06656448,2563.0,2562.4,0.00786324]
[1646963938117,0.06656448,2563.0,2562.1,0.90773863]
[1646963938118,0.06656448,2563.0,2562.2,0.97596]
[1646963938318,0.06656448,2563.0,2562.2,0.98382128]
[1646963939119,0.06656448,2563.0,2562.2,2.93561128]
[1646963939320,0.06656448,2563.0,2562.2,2.92775]
[1646963940624,0.06656448,2563.0,2562.3,0.3]
[1646963941024,0.07935924,2563.3,2562.3,0.3]
[1646963941272,0.07935924,2563.3,2562.2,2.25167]
[1646963941676,0.07574491,2563.3,2562.2,2.25167]
[1646963941872,0.07935946,2563.3,2562.2,2.25953184]
[1646963942273,1.05525246,2563.3,2562.2,2.25953184]
[1646963942473,1.05525246,2563.3,2562.4,0.97589]
[1646963942474,0.07720855,2563.1,2562.4,0.97589]
[1646963942674,0.97950755,2563.3,2562.4,0.97589]
[1646963942675,0.06954619,2563.3,2562.4,0.97589]
[1646963942874,0.06593164,2563.3,2562.4,0.97589]
[1646963943074,0.06954619,2563.3,2562.4,1.27589]
[1646963943275,0.06954619,2563.3,2562.4,0.97589]
[1646963943473,1.04544529,2563.3,2562.4,0.97589]
[1646963943674,0.07053888,2563.1,2562.4,0.97589]
[1646963944074,0.07053888,2563.1,2562.2,2.92755]
[1646963944274,0.07053888,2563.1,2562.2,1.95953184]
[1646963945316,0.07053888,2563.1,2562.2,2.92755]
[1646963945516,0.07053888,2563.1,2562.2,1.95167]
[1646963945716,0.07053888,2563.1,2562.3,1.0]
[1646963947224,1.04651178,2563.1,2562.3,1.0]
[1646963947422,0.07324754,2563.0,2562.3,1.0]
[1646963948864,0.07324754,2563.0,2562.3,1.3]
[1646963949066,0.08244809,2563.2,2562.4,0.9759]
[1646963949268,0.08244809,2563.2,2562.4,1.2759]
[1646963949466,0.00302503,2563.3,2562.4,1.2759]
[1646963950068,0.07826949,2563.4,2562.4,1.2759]
[1646963950270,0.00361466,2563.3,2562.8,1.0]
[1646963950468,0.00361466,2563.3,2562.7,1.95136]
[1646963950869,0.00361466,2563.3,2562.7,2.25136]
[1646963951273,0.08080656,2563.8,2562.7,2.25136]
[1646963951474,0.08080656,2563.8,2562.9,2.06851387]
[1646963951672,0.00361484,2563.3,2562.9,2.06851387]
[1646963951872,0.00361484,2563.3,2562.9,2.36851387]
[1646963952073,0.00361484,2563.3,2562.9,1.27568]
[1646963952520,0.08080656,2563.8,2562.9,1.27568]
[1646963952718,0.00361495,2563.3,2562.9,1.27568]
[1646963953318,0.00361495,2563.3,2562.9,2.36701525]
[1646963953518,0.00361495,2563.3,2562.9,1.27568]
[1646963953718,0.08080656,2563.8,2562.9,0.97568]
[1646963953719,1.60792253,2563.7,2562.9,0.97568]
[1646963953918,0.00361348,2563.3,2562.9,0.97568]
[1646963954820,0.0749584,2563.6,2562.9,1.84696384]
[1646963955022,0.0749584,2563.6,2562.9,2.14696384]
[1646963955219,0.00361348,2563.3,2562.9,2.14696384]
[1646963955622,0.00277667,2563.3,2562.9,2.14696384]